bitfinex-derivatives/quotes_ETHF0:USTF0_20240826
["timestamp","ask_amount","ask_price","bid_price","bid_amount"]
[1724685703835,0.36835,2714.0,2713.9,0.37109301]
[1724685704536,0.0034062,2714.1,2714.0,0.36835]
[1724685705135,0.3717462,2714.1,2714.0,0.36835]
[1724685705444,0.0034062,2714.1,2714.0,0.36835]
[1724685706128,0.0034062,2714.1,2714.0,4.05315]
[1724685706434,0.0034062,2714.1,2714.0,7.90270929]
[1724685706635,0.00552761,2714.3,2714.2,0.36832]
[1724685707632,0.00825216,2714.3,2714.2,0.36832]
[1724685708938,0.00825216,2714.3,2714.1,3.18]
[1724685709138,0.00825216,2714.3,2713.9,1.14447207]
[1724685709139,0.00825216,2714.3,2713.9,0.37109301]
[1724685709442,0.36835,2714.0,2713.9,0.00274301]
[1724685710344,1.28923,2714.0,2713.9,0.00274301]
[1724685710535,4.97403,2714.0,2713.9,0.00274301]
[1724685710935,0.36835,2714.0,2713.9,0.00274301]
[1724685711147,4.05315,2714.0,2713.9,0.00274301]
[1724685711437,4.97403,2714.0,2713.9,0.00274301]
[1724685712642,5.89491,2714.0,2713.9,0.00274301]
[1724685712942,3.6848,2714.0,2713.9,0.00274301]
[1724685713245,0.36835,2714.1,2713.9,0.37110301]
[1724685713246,0.36834,2714.1,2713.9,0.37110301]
[1724685713441,0.36834,2714.1,2714.0,0.36835]
[1724685713744,0.36834,2714.1,2713.9,0.00274301]
[1724685714039,3.6348,2714.2,2713.9,0.00274301]
[1724685714040,3.2078,2714.2,2713.9,0.00274301]
[1724685714243,3.6415,2714.2,2714.1,0.36834]
[1724685715146,0.36834,2714.1,2714.0,0.36834]
[1724685715341,0.36835,2714.0,2713.9,0.37109301]
[1724685716440,0.36835,2714.0,2713.9,0.00274301]
[1724685716647,0.36835,2714.0,2713.9,0.37110301]
[1724685716845,0.36835,2714.0,2713.9,0.00274301]
[1724685717146,0.36835,2714.0,2713.9,0.37110301]
[1724685717736,0.36835,2714.0,2713.9,0.00274301]
[1724685717936,4.97403,2714.0,2713.9,0.00274301]
[1724685720140,1.28923,2714.0,2713.9,0.00274301]
[1724685720441,0.36835,2714.0,2713.9,0.37110301]
[1724685720638,3.6415,2714.2,2714.0,0.36834]
[1724685720947,4.00983,2714.2,2714.1,0.36834]
[1724685721346,0.36835,2714.0,2713.9,0.37109301]
[1724685721534,4.56232,2714.2,2714.1,0.36834]
[1724685721535,4.00983,2714.2,2714.1,0.36834]
[1724685723237,3.57613,2714.2,2714.1,0.36834]
[1724685723442,0.36835,2714.1,2714.0,0.36834]
[1724685723839,0.36835,2714.0,2713.9,0.37109301]
[1724685724235,1.28923,2714.0,2713.9,0.00274301]
[1724685725344,1.28923,2714.0,2713.9,0.37110301]
[1724685725645,3.57613,2714.2,2714.1,0.36834]
[1724685725958,4.49694,2714.2,2714.1,0.36834]
[1724685726956,3.57613,2714.2,2714.1,0.36834]
[1724685727245,3.57613,2714.2,2714.1,3.54834]
[1724685727246,3.2078,2714.2,2714.1,3.54834]
[1724685727447,0.92057,2715.0,2714.6,0.36827]
[1724685727649,0.36825,2714.8,2714.7,0.36824]
[1724685728245,0.92059,2714.9,2714.6,0.77626]
[1724685728246,0.36825,2714.7,2714.6,0.77626]
[1724685728441,3.2078,2715.1,2714.6,0.77626]
[1724685728442,4.12833,2715.1,2714.6,0.408]
[1724685728641,3.21197763,2715.1,2714.9,3.18]
[1724685728851,3.58017763,2715.1,2715.0,0.36821]
[1724685729643,0.36821,2715.0,2714.9,3.54822]
[1724685729856,3.58018763,2715.1,2715.0,0.36821]
[1724685730043,3.21197763,2715.1,2715.0,0.36821]
[1724685730348,3.21197763,2715.1,2715.0,4.05141]
[1724685730349,0.00417763,2715.1,2715.0,4.05141]
[1724685730651,0.00417763,2715.1,2715.0,4.45521]
[1724685730842,0.00417763,2715.1,2715.0,9.32035557]
[1724685731044,3.2078,2715.5,2715.4,0.36816]
[1724685731244,3.2078,2715.5,2715.4,3.54816]
[1724685731853,3.2078,2715.5,2715.4,7.23056]
[1724685732054,3.211828,2715.5,2715.4,7.23056]
[1724685732354,3.211828,2715.5,2715.4,11.20613303]
[1724685733051,3.211828,2715.5,2715.2,0.37370761]
[1724685733243,3.579978,2715.5,2715.2,0.37370761]
[1724685733658,0.36817,2715.4,2715.2,0.00552761]
[1724685734152,0.36816,2715.4,2715.2,0.00552761]
[1724685734349,3.579978,2715.5,2715.2,0.37370761]
[1724685735445,3.211828,2715.5,2715.3,0.36817]
[1724685735651,3.579978,2715.5,2715.2,0.37370761]
[1724685735855,0.36816,2715.4,2715.2,0.00552761]
[1724685736054,3.211828,2715.5,2715.2,0.00552761]
[1724685736055,0.36817,2715.3,2715.2,0.00552761]
[1724685736548,4.05137,2715.3,2715.2,0.00552761]
[1724685738255,3.6832,2715.3,2715.2,0.00552761]
[1724685738554,4.05137,2715.3,2715.2,0.00552761]
[1724685740542,4.97181,2715.3,2715.2,0.00552761]
[1724685740748,4.97181,2715.3,2714.5,0.18453725]
[1724685740749,8.6832,2715.3,2714.4,0.36829]
[1724685741061,3.2078,2714.6,2714.0,0.36834]
[1724685741360,0.36835,2714.0,2713.9,0.00274301]
[1724685741550,0.36833,2714.2,2714.0,0.36835]
[1724685741750,2.21241,2714.5,2713.9,0.00274301]
[1724685741751,0.36832,2714.3,2714.1,0.36834]
[1724685741954,0.36832,2714.3,2713.9,3.18274301]
[1724685742152,0.36832,2714.3,2714.1,0.36833]
[1724685742455,0.36832,2714.2,2714.1,0.36833]
[1724685743748,0.00552761,2714.4,2713.9,3.18274301]
[1724685743953,0.36832,2714.2,2714.1,0.36833]
[1724685744354,0.36832,2714.3,2713.9,3.18274301]
[1724685744550,0.36832,2714.2,2714.1,0.36833]
[1724685744854,0.36832,2714.3,2714.1,0.36833]
[1724685745055,0.36832,2714.2,2714.1,0.36833]
[1724685745757,0.00552761,2714.4,2714.1,3.684]
[1724685745961,0.00552761,2714.4,2714.3,0.36831]
[1724685746158,3.2078,2714.9,2714.3,4.60478]
[1724685746359,3.57604,2714.9,2714.8,0.36824]
[1724685746667,0.36824,2714.8,2714.7,0.36825]
[1724685746962,4.1083,2715.2,2714.6,3.18]
[1724685747166,1.421518,2715.5,2714.9,3.18]
[1724685747167,0.004028,2715.5,2714.9,3.18]
[1724685747463,0.36816,2715.4,2715.2,0.36818]
[1724685747649,0.372178,2715.5,2715.3,0.36817]
[1724685748052,0.004028,2715.5,2715.2,0.36818]
[1724685748258,0.36816,2715.4,2715.2,0.36818]
[1724685748475,0.372178,2715.5,2715.0,4.73436464]
[1724685748649,0.36816,2715.4,2715.0,4.73436464]
[1724685748854,0.36817,2715.3,2715.1,0.36819]
[1724685749251,0.36817,2715.4,2715.1,0.36819]
[1724685750263,0.372178,2715.5,2715.3,0.36816]
[1724685750560,0.004028,2715.5,2715.4,0.36816]
[1724685750764,0.004028,2715.5,2715.4,4.3120421]
[1724685750964,0.004028,2715.5,2715.4,7.9944421]
[1724685751166,0.004028,2715.5,2715.4,7.25836]
[1724685751459,0.00017043,2715.5,2715.4,11.40724708]
[1724685751968,0.90900956,2715.6,2715.5,0.36815]
[1724685752164,0.90900956,2715.6,2715.5,7.23055]
[1724685752165,0.89700956,2715.6,2715.5,7.23055]
[1724685752470,0.89700956,2715.6,2715.5,11.28792737]
[1724685752958,0.89990642,2715.6,2715.5,11.28792737]
[1724685753958,0.89990642,2715.6,2715.5,8.10792737]
[1724685756366,0.89990642,2715.6,2715.5,13.10792737]
[1724685757567,0.13690642,2715.6,2715.5,14.94866737]
[1724685757770,0.4018,2716.3,2716.0,0.36807]
[1724685757962,0.36806,2716.2,2716.0,0.36807]
[1724685758469,0.38004,2716.3,2716.1,0.36806]
[1724685758656,0.38004,2716.3,2716.1,0.37256539]
[1724685758657,0.38333072,2716.3,2716.1,0.37256539]
[1724685758862,0.38334072,2716.3,2716.1,0.37256539]
[1724685759064,0.01529072,2716.3,2716.2,0.36805]
[1724685759465,0.01529072,2716.3,2716.2,13.84549524]
[1724685759963,0.38333072,2716.3,2716.2,12.55731524]
[1724685760170,0.38333072,2716.3,2716.1,0.37256539]
[1724685760563,0.36805,2716.2,2716.1,0.37256539]
[1724685760763,0.38334072,2716.3,2716.1,0.37256539]
[1724685761571,0.38334072,2716.3,2716.2,0.36805]
[1724685762660,0.01529072,2716.3,2716.2,0.36805]
[1724685765159,0.01529072,2716.3,2716.2,4.04965]
[1724685765363,0.01529072,2716.3,2716.2,16.33106287]
[1724685765977,0.01529072,2716.3,2716.2,17.25119287]
[1724685766276,0.01529072,2716.3,2716.2,17.75969287]
[1724685767172,0.01529072,2716.3,2716.2,22.75969287]
[1724685768566,0.01529072,2716.3,2716.2,17.25119287]
[1724685769765,0.01529072,2716.3,2716.2,22.25119287]
[1724685771265,0.01529072,2716.3,2716.2,16.33106287]
[1724685772274,0.01529072,2716.3,2716.2,15.41093287]
[1724685772481,0.01529072,2716.3,2716.2,16.33106287]
[1724685773475,0.01529072,2716.3,2716.2,22.25119287]
[1724685774083,0.36796,2716.9,2716.8,0.36797]
[1724685774281,0.36796,2716.9,2716.3,0.92008]
[1724685774282,0.36797,2716.8,2716.7,0.36797]
[1724685774483,0.36797,2716.8,2716.7,0.36798]
[1724685775177,0.36797,2716.8,2716.6,3.18552761]
[1724685775178,0.36798,2716.7,2716.6,3.18552761]
[1724685775377,0.36798,2716.7,2716.6,0.00552761]
[1724685775974,4.96874,2716.7,2716.6,0.00552761]
[1724685776177,1.28794,2716.7,2716.6,0.00552761]
[1724685776378,4.96874,2716.7,2716.6,0.00552761]
[1724685776885,4.04878,2716.7,2716.6,0.00552761]
[1724685777284,4.04878,2716.7,2716.6,0.37352761]
[1724685777483,0.36798,2716.7,2716.6,0.37352761]
[1724685777685,0.37273756,2716.8,2716.7,0.36798]
[1724685777888,0.00476756,2716.8,2716.7,0.36798]
[1724685778287,0.00476756,2716.8,2716.7,1.28794]
[1724685778888,0.00476756,2716.8,2716.7,0.36798]
[1724685780288,3.68556756,2716.8,2716.6,0.00552761]
[1724685780585,3.68556756,2716.8,2716.7,3.54798]
[1724685780586,0.00476756,2716.8,2716.7,3.54798]
[1724685781791,0.00476756,2716.8,2716.7,12.5522836]
[1724685782490,0.00476756,2716.8,2716.7,13.4722436]
[1724685782688,0.00476756,2716.8,2716.7,13.9544436]
[1724685784596,0.00476756,2716.8,2716.7,17.1622436]
[1724685784793,0.00476756,2716.8,2716.7,57.0422836]
[1724685785295,0.36788,2717.5,2716.7,61.6743036]
[1724685785591,0.36788,2717.5,2717.3,0.3679]
[1724685785592,0.4944,2717.4,2717.3,0.3679]
[1724685785896,3.2078,2717.9,2717.7,0.36784]
[1724685786091,0.36784,2717.8,2717.7,3.18]
[1724685786297,0.37166319,2717.8,2717.7,3.18]
[1724685786490,0.00382319,2717.8,2717.7,3.18]
[1724685786688,0.00382319,2717.8,2717.4,3.54788]
[1724685786689,0.36786,2717.7,2717.4,3.54788]
[1724685786893,0.00382319,2717.8,2717.2,3.18]
[1724685787194,0.00382319,2717.8,2717.6,0.36786]
[1724685787585,0.37166319,2717.8,2717.5,0.36787]
[1724685787791,0.00382319,2717.8,2717.4,3.18]
[1724685787993,0.00382319,2717.8,2717.6,0.36785]
[1724685788195,0.00382319,2717.8,2717.4,3.18]
[1724685788196,0.37166319,2717.8,2717.5,0.36787]
[1724685788397,0.00382319,2717.8,2717.6,0.36785]
[1724685789098,0.00382319,2717.8,2717.6,0.36786]
[1724685789290,0.00382319,2717.8,2717.7,0.36785]
[1724685789490,0.00382319,2717.8,2717.5,0.4933]
[1724685789691,0.36787,2717.5,2717.4,3.18]
[1724685789995,0.36787,2717.5,2716.7,49.49076]
[1724685789996,0.36789,2717.4,2717.1,3.18]
[1724685790294,0.36789,2717.4,2717.1,7.18743034]
[1724685790295,0.4699,2717.3,2717.1,7.18743034]
[1724685790694,0.4699,2717.3,2717.2,0.36792]
[1724685790997,0.4699,2717.3,2717.1,7.55535034]
[1724685791199,0.4699,2717.3,2717.2,0.36792]
[1724685791395,0.4699,2717.3,2717.1,7.18743034]
[1724685791599,0.4699,2717.3,2717.2,0.36792]
[1724685791899,0.4699,2717.3,2717.1,7.55535034]
[1724685792098,0.36792,2717.2,2717.1,7.18743034]
[1724685792288,0.36792,2717.2,2717.1,3.18]
[1724685792495,0.4699,2717.3,2717.1,3.18]
[1724685792496,0.83781,2717.3,2717.1,3.18]
[1724685792794,0.4699,2717.3,2717.1,3.54793]
[1724685793093,0.8378,2717.3,2717.1,3.54793]
[1724685793502,0.4699,2717.3,2717.1,3.54793]
[1724685794303,0.83781,2717.3,2717.1,3.18]
[1724685794601,0.4699,2717.3,2717.1,3.54793]
[1724685794805,0.8378,2717.3,2717.1,3.54793]
[1724685795107,0.4699,2717.3,2717.2,0.36792]
[1724685795797,0.4707,2717.4,2717.3,0.3679]
[1724685796009,0.9461,2717.4,2717.3,0.3679]
[1724685796406,0.85595,2717.7,2717.5,0.36787]
[1724685796714,0.85595,2717.7,2717.2,0.4567]
[1724685796715,0.00382319,2717.8,2717.7,0.36785]
[1724685797211,0.36787,2717.5,2717.4,3.18]
[1724685797410,0.36787,2717.6,2717.4,3.54789]
[1724685797708,0.36786,2717.7,2717.5,0.36787]
[1724685797911,0.36786,2717.6,2717.4,3.54788]
[1724685798106,0.83436,2717.6,2717.4,3.54788]
[1724685798612,0.4899,2717.5,2717.4,3.54788]
[1724685800814,0.4665,2717.6,2717.5,0.36787]
[1724685801006,0.46532319,2717.8,2717.5,0.36787]
[1724685801207,0.46532319,2717.8,2717.7,0.36785]
[1724685801916,0.83315319,2717.8,2717.7,0.36785]
[1724685802322,0.36785,2717.7,2717.5,0.36787]
[1724685802621,0.83316319,2717.8,2717.6,0.36786]
[1724685802816,0.46532319,2717.8,2717.6,0.36786]
[1724685803115,0.46532319,2717.8,2717.7,3.54785]
[1724685803305,3.2078,2718.6,2717.7,7.191774]
[1724685803510,3.2078,2718.6,2718.1,3.18]
[1724685803711,1.4181,2718.8,2718.5,0.36773]
[1724685803904,1.7858,2718.8,2718.5,0.36773]
[1724685804109,1.7858,2718.8,2718.4,3.54774]
[1724685804110,5.4642,2718.8,2718.4,3.54774]
[1724685804313,0.36772,2718.7,2718.4,3.55106279]
[1724685804613,0.36771,2718.7,2718.4,3.18332279]
[1724685804819,0.9537438,2718.8,2718.4,3.18332279]
[1724685805120,1.3214438,2718.8,2718.4,3.18332279]
[1724685805313,0.36771,2718.7,2718.4,3.55106279]
[1724685805508,0.36772,2718.7,2718.4,3.55107279]
[1724685805709,0.36771,2718.7,2718.4,3.55107279]
[1724685805923,0.4832,2718.7,2718.5,0.36774]
[1724685806218,0.85092,2718.7,2718.4,3.55106279]
[1724685806820,0.4832,2718.7,2718.5,0.36774]
[1724685807117,0.36771,2718.7,2718.4,3.55107279]
[1724685807718,0.4832,2718.7,2718.5,0.36774]
[1724685807922,0.9537438,2718.8,2718.4,3.18332279]
[1724685808118,0.9537438,2718.8,2718.7,3.54771]
[1724685808305,0.9537438,2718.8,2718.7,3.18]
[1724685808306,1.3214438,2718.8,2718.7,3.18]
[1724685808616,0.9537438,2718.8,2718.7,3.54771]
[1724685808820,0.0031438,2718.8,2718.7,3.54771]
[1724685811009,4.0492438,2718.8,2718.7,3.18]
[1724685811408,0.3708438,2718.8,2718.7,3.18]
[1724685811614,4.0492438,2718.8,2718.7,3.18]
[1724685811815,0.3708438,2718.8,2718.7,3.18]
[1724685812413,0.36773,2718.6,2718.5,3.18]
[1724685812612,0.83472,2718.7,2718.5,3.18]
[1724685812818,0.36773,2718.6,2718.5,3.18]
[1724685813017,0.83472,2718.7,2718.5,3.18]
[1724685813316,0.467,2718.7,2718.5,3.18]
[1724685813518,0.0031438,2718.8,2718.7,0.36771]
[1724685813723,0.0031438,2718.8,2718.7,3.18]
[1724685814321,0.3708438,2718.8,2718.7,3.18]
[1724685814623,0.0031438,2718.8,2718.7,3.18]
[1724685814822,0.0031438,2718.8,2718.7,3.54771]
[1724685815317,0.0031438,2718.8,2718.7,3.18]
[1724685816022,0.36773,2718.6,2718.5,3.18]
[1724685816222,0.36774,2718.5,2718.4,0.00332279]
[1724685816419,4.9568,2718.5,2718.4,0.00332279]
[1724685816621,8.6352,2718.5,2718.4,0.00332279]
[1724685817018,7.71584,2718.5,2718.4,0.00332279]
[1724685817324,4.50804,2718.5,2718.4,0.00332279]
[1724685817624,3.2109438,2718.8,2718.5,0.36774]
[1724685817822,0.36773,2718.6,2718.5,3.54774]
[1724685818024,0.36773,2718.6,2718.5,3.18]
[1724685818221,4.04613,2718.6,2718.5,3.18]
[1724685818425,0.36773,2718.6,2718.5,3.18]
[1724685819812,4.04613,2718.6,2718.5,3.18]
[1724685820121,4.96545,2718.6,2718.5,3.18]
[1724685820323,5.45835,2718.6,2718.5,3.18]
[1724685820918,0.86063,2718.6,2718.5,3.18]
[1724685821119,4.53903,2718.6,2718.5,3.18]
[1724685822321,1.2871,2718.5,2718.4,0.00332279]
[1724685822726,4.9655,2718.5,2718.4,0.00332279]
[1724685822927,0.97,2718.6,2718.4,0.00332279]
[1724685822928,0.86063,2718.6,2718.4,0.00332279]
[1724685823227,0.86063,2718.6,2718.5,3.18]
[1724685824025,0.3708438,2718.8,2718.7,0.36771]
[1724685824229,0.0031438,2718.8,2718.7,0.36771]
[1724685824627,0.0031438,2718.8,2718.7,8.91316425]
[1724685825224,0.0031438,2718.8,2718.7,7.99387425]
[1724685826029,0.0031438,2718.8,2718.7,4.31547425]
[1724685827332,0.0031438,2718.8,2718.7,0.36771]
[1724685827930,0.0031438,2718.8,2718.7,4.04611]
[1724685828132,0.0031438,2718.8,2718.7,4.37164567]
[1724685829025,0.0031438,2718.8,2718.7,8.05004567]
[1724685829229,0.0031438,2718.8,2718.7,11.25784567]
[1724685829532,0.0001333,2718.8,2718.7,11.25784567]
[1724685829740,0.0001333,2718.8,2718.7,12.17713567]
[1724685830731,0.36763,2719.3,2719.1,0.36765]
[1724685830939,0.36763,2719.3,2719.2,3.6854]
[1724685831329,4.04071,2719.5,2719.2,4.05303]
[1724685831625,4.04539013,2719.5,2719.3,0.36763]
[1724685831826,3.67778013,2719.5,2719.2,3.6854]
[1724685832028,0.36763,2719.3,2719.2,3.6854]
[1724685832433,0.84713,2719.4,2719.2,3.6854]
[1724685833239,0.36763,2719.3,2719.2,3.6854]
[1724685833425,0.36763,2719.3,2719.0,0.36767]
[1724685833629,0.4795,2719.4,2718.9,4.02468]
[1724685833630,0.36765,2719.2,2718.9,4.02468]
[1724685833825,0.36767,2719.0,2718.9,3.18]
[1724685834027,0.36767,2719.1,2718.7,7.77051]
[1724685834227,0.36764,2719.2,2718.8,0.3677]
[1724685834530,0.36764,2719.2,2718.7,7.4028]
[1724685834531,1.38598,2719.3,2718.7,4.195]
[1724685834926,0.36769,2718.9,2718.7,4.195]
[1724685835137,0.91915,2719.1,2718.7,4.195]
[1724685835338,0.36769,2718.9,2718.7,4.195]
[1724685835536,0.3677,2718.8,2718.7,4.195]
[1724685835738,0.36771,2718.7,2718.6,3.18]
[1724685835929,0.36771,2718.7,2718.4,3.21112279]
[1724685835930,3.6784,2718.7,2718.4,3.21112279]
[1724685836124,4.1453,2718.7,2718.4,0.00332279]
[1724685836334,0.36774,2718.5,2718.4,0.00332279]
[1724685836738,4.04614,2718.5,2718.4,0.00332279]
[1724685837035,4.9655,2718.5,2718.4,0.00332279]
[1724685837535,4.04614,2718.5,2718.4,0.00332279]
[1724685838331,0.83462,2718.7,2718.4,3.55106279]
[1724685838531,0.83462,2718.7,2718.5,0.36774]
[1724685838932,4.1761,2718.8,2718.6,0.36773]
[1724685839130,4.1761,2718.8,2718.4,3.18332279]
[1724685839326,0.36774,2718.5,2718.4,3.18332279]
[1724685839732,4.04614,2718.5,2718.4,0.00332279]
[1724685839933,4.04614,2718.5,2718.4,0.37107279]
[1724685840136,0.36773,2718.6,2718.5,0.36774]
[1724685840330,4.1761,2718.8,2718.4,3.18332279]
[1724685840526,4.1761,2718.8,2718.5,0.36773]
[1724685840733,0.36773,2718.6,2718.5,0.36773]
[1724685840930,0.36772,2718.7,2718.6,0.36772]
[1724685841133,0.36773,2718.6,2718.5,0.36774]
[1724685841333,0.36774,2718.5,2718.4,3.55106279]
[1724685842127,5.09537,2718.8,2718.5,0.36773]
[1724685842128,0.36773,2718.6,2718.5,0.36773]
[1724685842433,4.54381,2718.8,2718.7,0.36771]
[1724685842636,0.36772,2718.7,2718.6,0.36772]
[1724685842831,4.5438,2718.8,2718.7,0.36771]
[1724685843038,0.36772,2718.7,2718.6,0.36772]
[1724685843645,0.36773,2718.6,2718.5,0.36773]
[1724685843844,0.36772,2718.7,2718.6,0.36772]
[1724685844041,4.54381,2718.8,2718.7,0.36771]
[1724685844229,4.1761,2718.8,2718.7,0.36771]
[1724685844539,3.2078,2718.8,2718.7,3.54771]
[1724685844731,0.91914,2719.2,2719.1,0.36765]
[1724685844732,0.36765,2719.2,2719.1,0.36765]
[1724685846240,0.84334,2719.3,2719.2,0.36764]
[1724685846546,0.84334,2719.3,2719.0,3.18]
[1724685846547,0.36766,2719.1,2719.0,3.54767]
[1724685846841,0.36766,2719.1,2719.0,3.18]
[1724685847147,0.36769,2718.9,2718.8,3.2078]
[1724685848639,0.4969,2719.2,2718.8,3.2078]
[1724685848840,0.4757,2719.3,2719.1,3.18]
[1724685849040,1.28676,2719.2,2719.1,3.18]
[1724685849249,0.36769,2718.9,2718.7,0.95267438]
[1724685849435,0.4916,2718.8,2718.6,0.95267438]
[1724685849755,0.8593,2718.8,2718.5,4.60597438]
[1724685849948,0.8593,2718.8,2718.6,0.36773]
[1724685850444,0.36768,2719.0,2718.8,0.36769]
[1724685850644,4.12693,2719.2,2718.9,0.36768]
[1724685850645,0.36766,2719.1,2718.9,0.36768]
[1724685851047,0.4667,2719.2,2719.1,0.36766]
[1724685851242,0.4667,2719.2,2719.1,3.54766]
[1724685851447,0.4757,2719.3,2719.2,0.36764]
[1724685851642,0.00468013,2719.5,2719.1,3.18]
[1724685851847,0.00468013,2719.5,2719.4,3.54762]
[1724685853147,0.00468013,2719.5,2719.4,7.22522]
[1724685853348,0.00468013,2719.5,2719.4,3.54762]
[1724685853541,0.00468013,2719.5,2719.4,7.22522]
[1724685853751,0.4714,2720.0,2719.8,0.36756]
[1724685854051,0.4714,2720.0,2719.9,3.18]
[1724685854251,0.4714,2720.0,2719.9,3.54755]
[1724685854757,0.00377118,2720.0,2719.9,3.54755]
[1724685855647,0.00377118,2720.0,2719.9,3.18]
[1724685856354,0.00377118,2720.0,2719.9,3.54755]
[1724685856748,0.00377118,2720.0,2719.9,3.18]
[1724685856951,0.37131118,2720.0,2719.9,3.18]
[1724685857349,4.04811118,2720.0,2719.6,0.36758]
[1724685857555,0.36755,2719.9,2719.6,3.54758]
[1724685857753,0.37132118,2720.0,2719.7,0.36757]
[1724685857953,0.37131118,2720.0,2719.9,3.18]
[1724685858352,0.00377118,2720.0,2719.6,3.18]
[1724685858551,0.00377118,2720.0,2719.4,0.47901724]
[1724685858552,0.36759,2719.6,2719.4,3.65901724]
[1724685858967,0.3676,2719.5,2719.4,3.18551724]
[1724685859156,0.8456,2719.5,2719.4,0.00551724]
[1724685859463,5.44222,2719.5,2719.4,0.00551724]
[1724685859662,4.5232,2719.5,2719.4,0.00551724]
[1724685860162,0.36756,2719.9,2719.6,0.36759]
[1724685860662,0.36759,2719.7,2719.5,4.1628]
[1724685860861,0.00377118,2720.0,2719.5,4.1628]
[1724685861050,0.00377118,2720.0,2719.9,3.18]
[1724685861661,0.00377118,2720.0,2719.6,3.18]
[1724685861662,3.68057118,2720.0,2719.6,3.18]
[1724685861963,0.48177118,2720.0,2719.9,3.18]
[1724685862459,0.48177118,2720.0,2719.9,3.54755]
[1724685862460,0.00377118,2720.0,2719.9,3.54755]
[1724685862762,0.00377118,2720.0,2719.9,3.18]
[1724685862957,4.04811118,2720.0,2719.9,3.18]
[1724685863361,3.68057118,2720.0,2719.9,3.54755]
[1724685863557,0.00377118,2720.0,2719.9,3.54755]
[1724685865066,0.00377118,2720.0,2719.9,7.22435]
[1724685866159,0.00377118,2720.0,2719.9,3.54755]
[1724685866751,0.00377118,2720.0,2719.9,44.34755]
[1724685866955,0.00377118,2720.0,2719.9,48.02435]
[1724685867756,0.00377118,2720.0,2719.9,3.54755]
[1724685868367,0.00377118,2720.0,2719.9,3.18]
[1724685868564,0.37131118,2720.0,2719.9,3.18]
[1724685868766,4.96696118,2720.0,2719.6,3.18]
[1724685868959,0.00377118,2720.0,2719.6,3.18]
[1724685869163,0.91891,2719.9,2719.4,3.21331724]
[1724685869364,0.3676,2719.6,2719.4,0.00551724]
[1724685869556,0.3676,2719.5,2719.4,0.00551724]
[1724685870065,5.06362,2719.8,2719.4,0.00551724]
[1724685870261,0.3676,2719.6,2719.4,0.37313724]
[1724685870463,5.06362,2719.8,2719.4,0.00551724]
[1724685870861,0.3676,2719.5,2719.4,0.00551724]
[1724685871458,4.0452,2719.5,2719.4,0.00551724]
[1724685871658,3.6776,2719.5,2719.4,0.00551724]
[1724685871868,0.3676,2719.6,2719.4,0.37313724]
[1724685872461,0.3676,2719.5,2719.4,0.00551724]
[1724685873069,0.36756,2719.9,2719.7,0.36758]
[1724685873268,0.00377118,2720.0,2719.8,0.36756]
[1724685873269,0.37131118,2720.0,2719.8,0.36756]
[1724685873969,0.00377118,2720.0,2719.9,0.36755]
[1724685874160,0.00377118,2720.0,2719.9,3.54755]
[1724685876669,0.00377118,2720.0,2719.9,8.14323]
[1724685876872,3.2078,2720.2,2720.1,0.36752]
[1724685877369,0.4614,2720.5,2720.0,4.12664]
[1724685877573,0.4614,2720.5,2720.4,3.18]
[1724685877574,0.82887,2720.5,2720.4,3.18]
[1724685877766,4.50892892,2720.5,2720.4,3.18301168]
[1724685878370,4.50892892,2720.5,2720.4,3.55049168]
[1724685878574,4.50892892,2720.5,2720.4,0.00301168]
[1724685878776,0.91871,2720.4,2719.7,4.1709]
[1724685879069,0.36753,2720.1,2719.7,4.1709]
[1724685879273,1.38415892,2720.5,2720.0,3.18]
[1724685879471,0.36749,2720.4,2720.2,0.36751]
[1724685879807,0.36749,2720.4,2720.3,3.18]
[1724685882266,0.46545892,2720.5,2720.3,3.18]
[1724685882569,0.36748,2720.4,2720.3,3.54749]
[1724685882764,0.83293892,2720.5,2720.3,3.18]
[1724685883077,0.46545892,2720.5,2720.3,3.18]
[1724685883372,0.46545892,2720.5,2720.3,3.54749]
[1724685883673,0.36748,2720.4,2720.3,3.54749]
[1724685884668,0.83293892,2720.5,2720.4,0.36748]
[1724685885574,0.36748,2720.4,2720.3,3.54749]
[1724685886077,0.36748,2720.4,2720.3,3.18]
[1724685886476,0.36748,2720.4,2720.2,0.00308411]
[1724685886477,0.3675,2720.3,2720.2,0.00308411]
[1724685886771,3.676,2720.4,2720.2,0.00308411]
[1724685886772,0.36749,2720.4,2720.2,0.00308411]
[1724685886977,0.46545892,2720.5,2720.2,0.00308411]
[1724685887371,0.3675,2720.3,2720.2,0.37058411]
[1724685887673,0.3675,2720.3,2720.2,0.00308411]
[1724685887872,9.96225,2720.3,2720.2,0.00308411]
[1724685888281,4.0435,2720.3,2720.2,0.00308411]
[1724685888776,4.96225,2720.3,2720.2,0.00308411]
[1724685889472,5.881,2720.3,2720.2,0.00308411]
[1724685889672,10.881,2720.3,2720.2,0.00308411]
[1724685889879,9.96225,2720.3,2720.2,0.00308411]
[1724685890075,4.96225,2720.3,2720.2,0.00308411]
[1724685890377,9.96225,2720.3,2720.2,0.00308411]
[1724685891272,10.881,2720.3,2720.2,0.00308411]
[1724685891482,13.17005,2720.3,2720.2,0.00308411]
[1724685894378,14.0888,2720.3,2720.2,0.00308411]
[1724685895380,0.91892,2719.8,2719.4,0.37311724]
[1724685895586,0.3676,2719.5,2719.4,0.37311724]
[1724685895774,0.3676,2719.6,2719.5,0.3676]
[1724685895971,0.3676,2719.6,2719.4,0.00551724]
[1724685895972,0.9974,2719.7,2719.6,0.36759]
[1724685896279,0.91886,2720.0,2719.9,0.36754]
[1724685896280,0.36754,2720.0,2719.9,0.36754]
[1724685896982,3.6768,2720.0,2719.7,0.9683]
[1724685897178,3.6768,2720.0,2719.6,0.37199142]
[1724685897179,0.36758,2719.7,2719.6,0.37199142]
[1724685897684,0.36754,2720.0,2719.9,0.36754]